bitfinex/quotes_BTCUSD_20241111
["timestamp","ask_amount","ask_price","bid_price","bid_amount"]
[1731354265497,1.5,86240.0,86236.0,0.005]
[1731354265658,0.11994075,86239.0,86236.0,0.005]
[1731354265986,0.11827408,86239.0,86236.0,0.005]
[1731354266187,1.5,86238.0,86237.0,0.005]
[1731354266502,1.5,86238.0,86225.0,0.005]
[1731354266503,1.61994075,86238.0,86229.0,0.005]
[1731354266646,1.61994075,86238.0,86230.0,0.1738556]
[1731354266647,1.5,86238.0,86230.0,0.1738556]
[1731354266854,1.5,86238.0,86237.0,0.005]
[1731354268338,1.61994075,86238.0,86237.0,0.005]
[1731354269536,0.0017046,86247.0,86239.0,0.005]
[1731354269747,0.0017046,86247.0,86236.0,0.005]
[1731354269748,0.11994075,86246.0,86241.0,0.005]
[1731354269958,1.5,86245.0,86241.0,0.005]
[1731354270163,1.5,86245.0,86236.0,0.00561526]
[1731354270164,1.61994075,86245.0,86242.0,0.005]
[1731354271479,1.61994075,86245.0,86230.0,0.1738556]
[1731354271480,1.5,86245.0,86244.0,0.17947086]
[1731354271679,0.0017046,86247.0,86246.0,0.01061526]
[1731354271901,0.0017046,86247.0,86246.0,0.01]
[1731354272580,0.0017046,86247.0,86239.0,0.0464]
[1731354272581,0.0017046,86247.0,86240.0,0.01]
[1731354272800,0.0017046,86247.0,86246.0,0.005]
[1731354277320,0.0017046,86247.0,86246.0,0.00561526]
[1731354277735,0.0017046,86247.0,86246.0,0.005]
[1731354279885,0.0017046,86247.0,86246.0,0.01]
[1731354280093,0.0017046,86247.0,86246.0,0.13555601]
[1731354280482,0.0017046,86247.0,86246.0,0.13787451]
[1731354281491,0.0017044,86271.0,86270.0,0.005]
[1731354281492,0.17523702,86271.0,86270.0,0.005]
[1731354281991,0.00138142,86271.0,86270.0,0.005]
[1731354283489,0.00138142,86271.0,86270.0,0.01]
[1731354284940,0.00138142,86271.0,86270.0,0.0096]
[1731354285140,0.00138142,86271.0,86270.0,0.0046]
[1731354285141,0.16111618,86271.0,86270.0,0.0046]
[1731354285376,0.12132217,86271.0,86270.0,0.0046]
[1731354285808,1.62132217,86271.0,86270.0,0.0046]
[1731354286675,1.50138142,86271.0,86270.0,0.0046]
[1731354288388,1.62132217,86271.0,86270.0,0.0046]
[1731354289089,1.70332217,86271.0,86270.0,0.0046]
[1731354289416,1.70332217,86271.0,86259.0,0.1738556]
[1731354289631,1.70332217,86271.0,86260.0,0.1738556]
[1731354289632,0.1,86269.0,86260.0,0.1738556]
[1731354289838,0.1,86267.0,86260.0,0.1738556]
[1731354290064,0.1,86265.0,86260.0,0.1738556]
[1731354290289,1.61994075,86264.0,86260.0,0.1738556]
[1731354290785,1.61994075,86264.0,86257.0,0.0046]
[1731354290985,1.61994075,86264.0,86258.0,0.1738556]
[1731354291097,1.61994075,86264.0,86257.0,0.0046]
[1731354292162,1.61994075,86264.0,86258.0,0.1738556]
[1731354292386,1.61994075,86264.0,86259.0,0.1738556]
[1731354292624,1.47,86264.0,86262.0,0.0046]
[1731354292870,1.46998062,86264.0,86262.0,0.0046]
[1731354293265,0.00138142,86271.0,86262.0,0.0046]
[1731354293534,0.11994075,86270.0,86262.0,0.0046]
[1731354294294,0.11994075,86270.0,86263.0,0.1738556]
[1731354294496,0.11994075,86270.0,86263.0,0.1784556]
[1731354294715,0.00138142,86271.0,86263.0,0.1784556]
[1731354294716,0.00138142,86271.0,86270.0,0.005]
[1731354294958,0.00138142,86271.0,86270.0,0.14015601]
[1731354295335,0.001704,86277.0,86276.0,0.0096]
[1731354296657,0.01,86300.0,86299.0,0.0046]
[1731354296882,0.01,86300.0,86299.0,0.01021526]
[1731354297063,0.01,86300.0,86299.0,0.0096]
[1731354299386,0.01,86300.0,86299.0,0.01021526]
[1731354300788,0.01,86300.0,86299.0,0.14015601]
[1731354301006,0.01,86300.0,86299.0,0.34285601]
[1731354301373,0.1738556,86344.0,86333.0,0.0096]
[1731354301795,0.0759,86357.0,86333.0,0.0146]
[1731354301945,0.0759,86357.0,86333.0,0.01521526]
[1731354302149,0.04143101,86334.0,86333.0,0.0046]
[1731354302945,0.04143101,86334.0,86313.0,0.1]
[1731354302946,0.04143101,86334.0,86328.0,0.0046]
[1731354303149,0.04143101,86334.0,86332.0,0.0046]
[1731354303150,0.15162917,86333.0,86332.0,0.0046]
[1731354303361,0.11994075,86333.0,86332.0,0.0046]
[1731354303578,0.001702,86334.0,86333.0,0.0046]
[1731354304005,0.001702,86334.0,86333.0,0.0096]
[1731354304201,0.001702,86334.0,86333.0,0.01021526]
[1731354304456,0.001702,86334.0,86333.0,0.0096]
[1731354304659,0.03339042,86334.0,86333.0,0.0046]
[1731354304873,0.001702,86334.0,86333.0,0.0046]
[1731354305860,0.12164275,86334.0,86327.0,0.0046]
[1731354306096,0.12164275,86334.0,86322.0,0.005]
[1731354306097,0.11994075,86333.0,86332.0,0.0046]
[1731354306238,0.15162917,86333.0,86332.0,0.0046]
[1731354306888,0.15162917,86333.0,86323.0,0.0046]
[1731354307160,0.15162917,86333.0,86324.0,0.1738556]
[1731354307161,0.07908474,86331.0,86324.0,0.1738556]
[1731354307364,0.11994075,86330.0,86320.0,0.0046]
[1731354307563,0.00038474,86322.0,86301.0,0.1738556]
[1731354307773,0.00038474,86322.0,86310.0,0.1738556]
[1731354307774,0.19733395,86313.0,86310.0,0.1738556]
[1731354308035,0.00038474,86322.0,86310.0,0.1738556]
[1731354308036,0.19733395,86322.0,86310.0,0.1738556]
[1731354308224,0.1,86327.0,86310.0,0.1784556]
[1731354308630,1.5,86321.0,86310.0,0.0046]
[1731354308781,0.11994075,86320.0,86310.0,0.0046]
[1731354309396,0.11994075,86320.0,86311.0,0.0046]
[1731354310995,0.11994075,86320.0,86312.0,0.1738556]
[1731354311417,1.5,86313.0,86312.0,0.1738556]
[1731354311622,1.61994075,86313.0,86312.0,0.1738556]
[1731354311816,1.61994075,86313.0,86311.0,0.0046]
[1731354311972,0.27603395,86331.0,86302.0,0.1738556]
[1731354311973,0.0787,86331.0,86326.0,0.0046]
[1731354312195,0.0787,86331.0,86306.0,0.00231736]
[1731354312196,0.11994075,86331.0,86328.0,0.0046]
[1731354312410,0.11994075,86331.0,86330.0,0.0046]
[1731354312803,0.11994075,86331.0,86311.0,0.1738556]
[1731354313006,0.19733395,86326.0,86320.0,0.1738556]
[1731354313216,0.19733395,86326.0,86297.0,0.005]
[1731354313217,0.11994075,86322.0,86299.0,0.0046]
[1731354313389,0.11994075,86322.0,86296.0,0.005]
[1731354313390,0.19733395,86317.0,86312.0,0.1738556]
[1731354313604,1.5,86313.0,86295.0,0.0046]
[1731354313808,0.00038474,86311.0,86299.0,0.0008517]
[1731354313998,0.19733395,86309.0,86299.0,0.0054517]
[1731354314212,0.11994075,86308.0,86303.0,0.1738556]
[1731354314619,0.11994075,86308.0,86299.0,0.0054517]
[1731354314823,0.11994075,86308.0,86299.0,0.0008517]
[1731354315020,0.11994075,86308.0,86301.0,0.1738556]
[1731354315246,0.11994075,86308.0,86299.0,0.0054517]
[1731354315651,0.11994075,86308.0,86302.0,0.1738556]
[1731354315861,0.11994075,86308.0,86302.0,0.0046]
[1731354316075,0.11994075,86308.0,86304.0,0.0046]
[1731354316838,0.19733395,86306.0,86304.0,0.0046]
[1731354317055,0.11994075,86305.0,86303.0,0.0046]
[1731354317455,0.11994075,86305.0,86299.0,0.0008517]
[1731354317456,0.3172747,86305.0,86299.0,0.0008517]
[1731354317702,0.00138474,86301.0,86299.0,0.0008517]
[1731354317947,0.12032549,86301.0,86299.0,0.0008517]
[1731354318141,0.12032549,86301.0,86272.0,0.1738556]
[1731354318142,0.00038474,86283.0,86272.0,0.1738556]
[1731354318350,0.19733395,86273.0,86272.0,0.1738556]
[1731354318503,0.1971578,86273.0,86263.0,0.1738556]
[1731354318714,0.00038474,86271.0,86263.0,0.1738556]
[1731354318963,0.00038474,86271.0,86247.0,0.0046]
[1731354318964,0.00138474,86271.0,86247.0,0.0046]
[1731354319168,0.00038474,86271.0,86258.0,0.0046]
[1731354319362,0.1971578,86273.0,86249.0,0.0046]
[1731354319534,0.1971578,86273.0,86258.0,0.0046]
[1731354319737,0.1971578,86273.0,86256.0,0.0046]
[1731354319936,0.1971578,86273.0,86258.0,0.0046]
[1731354320214,0.10138474,86271.0,86255.0,0.0046]
[1731354320539,0.23547316,86271.0,86242.0,0.0046]
[1731354320751,0.43170843,86271.0,86243.0,0.0046]
[1731354320969,2.01957602,86271.0,86261.0,0.1738556]
[1731354321449,1.99657602,86271.0,86270.0,0.00060907]
[1731354321669,1.99796076,86271.0,86270.0,0.00060907]
[1731354322103,1.79894075,86271.0,86270.0,0.00060907]
[1731354323042,1.80032549,86271.0,86270.0,0.00060907]
[1731354323265,1.79894075,86271.0,86270.0,0.00060907]
[1731354323715,1.92026624,86271.0,86270.0,0.00060907]
[1731354323945,1.9188815,86271.0,86270.0,0.00060907]
[1731354324392,1.92026624,86271.0,86270.0,0.00060907]
[1731354324843,1.94326624,86271.0,86270.0,0.00060907]
[1731354325819,2.02307102,86271.0,86270.0,0.00060907]
[1731354326040,0.32202001,86258.0,86257.0,0.1738556]
[1731354326306,0.32202001,86258.0,86248.0,0.1738556]
[1731354326307,0.00038474,86249.0,86248.0,0.1738556]
[1731354326502,0.48736076,86249.0,86248.0,0.1738556]
[1731354326977,0.12338474,86248.0,86246.0,0.01]
[1731354327181,0.11994075,86247.0,86246.0,0.01]
[1731354327382,0.24294075,86247.0,86246.0,0.01]
[1731354327763,1.74294075,86247.0,86246.0,0.01]
[1731354327987,1.74432549,86247.0,86246.0,0.01]
[1731354328420,1.80662025,86247.0,86246.0,0.01]
[1731354329273,1.80523551,86247.0,86246.0,0.01]
[1731354329483,1.80662025,86247.0,86246.0,0.01]
[1731354330566,0.00038474,86240.0,86239.0,0.0008524]
[1731354330777,0.44156076,86240.0,86239.0,0.0008524]
[1731354330987,0.45173923,86240.0,86239.0,0.0008524]
[1731354331196,1.95173923,86240.0,86239.0,0.0008524]
[1731354331397,1.98335927,86240.0,86239.0,0.0008524]
[1731354331646,1.98474401,86240.0,86239.0,0.0008524]
[1731354331829,1.95213923,86240.0,86239.0,0.0008524]
[1731354332283,0.1,86227.0,86221.0,0.02514354]
[1731354332469,0.1,86222.0,86221.0,0.02514354]
[1731354332698,0.21994075,86222.0,86221.0,0.02514354]
[1731354332923,1.71994075,86222.0,86221.0,0.02514354]
[1731354333137,1.71994075,86222.0,86215.0,0.0046]
[1731354333138,0.21994075,86222.0,86215.0,0.0046]
[1731354333408,0.11994075,86221.0,86216.0,0.1738556]
[1731354333574,0.11994075,86221.0,86213.0,0.0066992]
[1731354333575,0.11994075,86221.0,86220.0,0.0046]
[1731354335320,1.5,86232.0,86221.0,0.0046]
[1731354335321,0.2738556,86231.0,86221.0,0.0046]
[1731354335537,0.11994075,86230.0,86221.0,0.0046]
[1731354335755,0.1,86229.0,86221.0,0.0046]
[1731354335984,0.1,86227.0,86221.0,0.0046]
[1731354336209,1.5,86232.0,86213.0,0.0016992]
[1731354336210,0.11994075,86226.0,86225.0,0.0046]
[1731354336434,0.1737956,86246.0,86231.0,0.0046]
[1731354336690,0.03180904,86245.0,86231.0,0.0046]
[1731354336884,1.5,86244.0,86231.0,0.0046]
[1731354337110,1.5,86244.0,86233.0,0.1738556]
[1731354337550,0.21994075,86243.0,86231.0,0.0046]
[1731354337779,0.21988075,86243.0,86232.0,0.1738556]
[1731354338344,0.21982075,86243.0,86231.0,0.0046]
[1731354338787,0.11994075,86240.0,86231.0,0.0046]
[1731354339012,0.12294,86239.0,86231.0,0.0046]
[1731354339236,0.11994075,86238.0,86231.0,0.0046]
[1731354339481,0.00038474,86230.0,86220.0,0.0008515]
[1731354339700,0.023,86230.0,86224.0,0.1738556]
[1731354339934,0.023,86230.0,86220.0,0.0008515]
[1731354339935,0.11994075,86225.0,86220.0,0.0008515]
[1731354340157,0.02478474,86221.0,86220.0,0.0008515]
[1731354340378,0.02472474,86221.0,86220.0,0.0008515]
[1731354340655,0.1775569,86221.0,86220.0,0.0008515]
[1731354340860,1.73469964,86221.0,86220.0,0.0008515]
[1731354341060,0.32190001,86214.0,86213.0,0.0016992]
[1731354341303,0.00028,86195.0,86194.0,0.1738556]
[1731354341514,0.00028,86195.0,86184.0,0.01869023]
[1731354341515,0.00028,86191.0,86184.0,0.01869023]
[1731354341738,0.1,86185.0,86184.0,0.01869023]
[1731354341945,0.21988075,86185.0,86184.0,0.01869023]
[1731354342368,1.9620441,86185.0,86184.0,0.0184628]
[1731354342596,1.71982075,86185.0,86184.0,0.0184628]
[1731354342823,1.71976075,86185.0,86184.0,0.0184628]
[1731354343257,1.71970075,86185.0,86184.0,0.0184628]
[1731354346231,1.74270075,86185.0,86184.0,0.0184628]
[1731354346678,1.8626415,86185.0,86184.0,0.0184628]
[1731354346898,2.05987677,86185.0,86184.0,0.0184628]
[1731354347365,2.05987677,86185.0,86171.0,0.1738556]
[1731354347366,0.32051527,86182.0,86171.0,0.1738556]
[1731354347572,0.44017602,86182.0,86171.0,0.1738556]
[1731354347799,0.24294075,86182.0,86171.0,0.1738556]
[1731354348048,0.21994075,86182.0,86172.0,0.00472]
[1731354348288,0.21994075,86182.0,86172.0,0.00972]
[1731354348956,0.21994075,86182.0,86173.0,0.00472]
[1731354349812,0.21994075,86182.0,86170.0,0.0008508]
[1731354349813,0.4621701,86182.0,86170.0,0.0008508]
[1731354350030,0.46283484,86182.0,86170.0,0.0008508]
[1731354350256,1.96283484,86182.0,86170.0,0.0008508]
[1731354350466,1.96383484,86182.0,86170.0,0.0008508]
[1731354350975,1.9624501,86182.0,86170.0,0.0008508]
[1731354351203,1.9624501,86182.0,86159.0,0.179706]
[1731354351204,0.128,86181.0,86171.0,0.1738556]
[1731354351425,0.1,86173.0,86159.0,0.1470447]
[1731354351638,0.023,86170.0,86159.0,0.1420447]
[1731354351854,0.001,86175.0,86159.0,0.1420447]
[1731354351855,0.005,86190.0,86177.0,0.005]
[1731354352059,0.1,86177.0,86165.0,0.005]
[1731354352277,0.1,86177.0,86151.0,0.00591526]
[1731354352278,0.03937963,86176.0,86160.0,0.005]
[1731354352499,0.1,86175.0,86164.0,0.1738556]
[1731354352721,0.21994075,86175.0,86165.0,0.005]
[1731354353604,0.1,86172.0,86155.0,0.1788556]
[1731354353819,0.1,86166.0,86156.0,0.1738556]
[1731354354024,0.1,86164.0,86156.0,0.1738556]
[1731354354260,0.1,86162.0,86152.0,0.005]
[1731354354468,0.11994075,86161.0,86152.0,0.005]
[1731354354915,0.11994075,86158.0,86151.0,0.0003]
[1731354355148,0.31717602,86153.0,86151.0,0.0003]
[1731354355375,0.11994075,86153.0,86148.0,0.1738556]
[1731354355596,0.11994075,86153.0,86142.0,0.005]
[1731354356094,0.11994075,86153.0,86139.0,0.1641556]
[1731354356095,0.11994075,86153.0,86149.0,0.005]
[1731354356514,0.11994075,86153.0,86143.0,0.005]
[1731354356515,0.1738556,86152.0,86143.0,0.005]
[1731354356718,0.21994075,86151.0,86136.0,0.005]
[1731354356936,0.21994075,86151.0,86134.0,0.0008512]
[1731354356937,0.29379635,86150.0,86134.0,0.0008512]
[1731354357155,0.1,86149.0,86137.0,0.1738556]
[1731354357374,0.00038474,86162.0,86134.0,0.0008512]
[1731354357375,0.005,86209.0,86184.0,0.005]
[1731354357580,0.19723527,86184.0,86160.0,0.005]
[1731354357808,0.69651626,86196.0,86148.0,0.0397]
[1731354357809,0.19723527,86175.0,86162.0,0.005]
[1731354358013,0.005,86182.0,86168.0,0.005]
[1731354358236,0.19723527,86170.0,86168.0,0.005]
[1731354358442,0.19723527,86170.0,86161.0,0.005]
[1731354358654,0.11994075,86169.0,86159.0,0.005]
[1731354359289,0.11994075,86169.0,86137.0,0.0138]
[1731354359290,0.69651626,86168.0,86156.0,0.005]
[1731354359518,0.12032549,86167.0,86132.0,0.04631526]
[1731354359755,0.1,86165.0,86152.0,0.005]
[1731354359973,0.69651626,86157.0,86152.0,0.005]
[1731354360188,1.5,86153.0,86152.0,0.005]
[1731354361292,0.19723527,86163.0,86152.0,0.005]
[1731354361493,0.21994075,86162.0,86152.0,0.005]
[1731354361718,0.21934075,86162.0,86152.0,0.005]
[1731354361944,0.1,86162.0,86156.0,0.005]
[1731354362154,1.5,86157.0,86156.0,0.005]
[1731354366241,1.5,86157.0,86156.0,0.00561526]
[1731354366450,1.5,86157.0,86156.0,0.0122431]
[1731354367732,1.5,86157.0,86156.0,0.01285844]
[1731354368155,1.5,86157.0,86156.0,0.0244474]
[1731354368812,1.5,86157.0,86156.0,0.02383214]
[1731354369031,1.5,86157.0,86156.0,0.0244474]
[1731354369670,1.5,86157.0,86156.0,0.02383214]
[1731354369884,1.5,86157.0,86156.0,0.0244474]
[1731354370358,0.17410178,86174.0,86173.0,0.005]
[1731354370583,0.17410178,86174.0,86173.0,0.02383214]
[1731354370992,0.0017038,86185.0,86173.0,0.02383214]
[1731354371510,0.0017038,86185.0,86164.0,0.00561526]
[1731354371511,0.0017038,86185.0,86181.0,0.005]
[1731354371684,1.5,86182.0,86181.0,0.005]
[1731354372132,0.0017038,86185.0,86184.0,0.005]
[1731354372560,0.0017038,86185.0,86184.0,0.00793564]
[1731354372806,0.0017038,86185.0,86184.0,0.13287639]
[1731354373003,0.0757,86230.0,86201.0,0.01]
[1731354373206,0.005,86229.0,86201.0,0.01]
[1731354373432,1.5,86210.0,86201.0,0.01]
[1731354373658,1.5,86210.0,86204.0,0.005]
[1731354373887,0.005,86229.0,86189.0,0.005]
[1731354373888,0.005,86229.0,86212.0,0.005]
[1731354374096,0.17410178,86232.0,86215.0,0.005]
[1731354374322,0.17410178,86232.0,86206.0,0.00061526]
[1731354374323,0.17410178,86232.0,86230.0,0.005]
[1731354374532,0.17410178,86232.0,86231.0,0.005]
[1731354374729,0.0763,86242.0,86239.0,0.005]
[1731354374987,0.0017036,86249.0,86239.0,0.005]
[1731354375204,0.02815372,86241.0,86232.0,0.005]
[1731354375434,0.11994075,86240.0,86232.0,0.005]
[1731354375845,0.02985732,86249.0,86236.0,0.005]
[1731354376059,0.27410178,86245.0,86237.0,0.005]
[1731354376230,0.27410178,86245.0,86221.0,0.00061526]
[1731354376231,0.1,86245.0,86241.0,0.005]
[1731354376512,0.02985732,86249.0,86241.0,0.005]
[1731354376925,0.02985732,86249.0,86242.0,0.005]
[1731354377133,0.02985732,86249.0,86246.0,0.005]
[1731354377378,0.0017036,86249.0,86246.0,0.005]
[1731354378672,0.0017036,86249.0,86231.0,0.005]
[1731354378673,0.14979747,86247.0,86239.0,0.005]
[1731354378890,0.001703,86247.0,86246.0,0.005]
[1731354379963,0.001703,86247.0,86246.0,0.13555601]
[1731354380168,0.001703,86247.0,86246.0,0.33279128]
[1731354380374,0.001703,86247.0,86246.0,0.01061526]
[1731354380575,0.001703,86247.0,86246.0,0.01]
[1731354380873,0.02985672,86247.0,86246.0,0.005]
[1731354381079,0.001703,86247.0,86246.0,0.005]
[1731354382588,0.001703,86247.0,86246.0,0.00561526]
[1731354383038,0.001703,86247.0,86246.0,0.20285053]
[1731354383251,0.001703,86247.0,86246.0,0.00561526]
[1731354384315,0.001703,86247.0,86246.0,0.13055601]
[1731354384731,0.001703,86247.0,86246.0,0.13787445]
[1731354385151,0.001703,86247.0,86246.0,0.13555601]
[1731354385309,0.001703,86247.0,86246.0,0.0129337]
[1731354385518,0.001703,86247.0,86246.0,0.13787445]
[1731354385724,0.001703,86247.0,86246.0,0.13555601]
[1731354387343,0.001703,86247.0,86246.0,0.43279128]
[1731354387596,0.001703,86247.0,86246.0,0.58349128]
[1731354387805,0.0017032,86272.0,86271.0,0.01561526]
[1731354388029,0.0017032,86272.0,86271.0,0.13555601]
[1731354388252,0.17410178,86282.0,86281.0,0.005]
[1731354388661,0.02783544,86301.0,86281.0,0.005]
[1731354388872,0.02783544,86301.0,86279.0,0.005]
[1731354389117,0.02571213,86290.0,86281.0,0.005]
[1731354389295,0.02571213,86290.0,86264.0,0.1]
[1731354389296,0.02571213,86290.0,86285.0,0.005]
[1731354389526,0.02571213,86290.0,86270.0,0.005]
[1731354389527,0.11994075,86289.0,86270.0,0.005]
[1731354389737,0.11994075,86289.0,86276.0,0.005]
[1731354390177,1.5,86277.0,86276.0,0.005]
[1731354391019,0.11994075,86289.0,86276.0,0.005]
[1731354391234,0.17410178,86285.0,86276.0,0.005]
[1731354391444,0.11994075,86284.0,86276.0,0.005]
[1731354391660,1.61994075,86284.0,86276.0,0.005]
[1731354392139,0.11994075,86284.0,86276.0,0.005]
[1731354393000,1.58,86290.0,86285.0,0.005]
[1731354393199,0.00705708,86291.0,86289.0,0.005]
[1731354393601,0.27410178,86300.0,86289.0,0.005]
[1731354393602,1.5,86299.0,86289.0,0.005]
[1731354394552,0.11994075,86298.0,86289.0,0.005]
[1731354397098,0.10720828,86300.0,86293.0,0.005]
[1731354398439,0.001702,86298.0,86293.0,0.005]
[1731354398886,0.001702,86298.0,86297.0,0.005]
[1731354399786,0.0017034,86308.0,86307.0,0.00561526]
[1731354400021,0.17410178,86317.0,86312.0,0.01061526]
[1731354400253,0.17410178,86317.0,86312.0,0.1377868]
[1731354400462,0.17410178,86327.0,86326.0,0.005]
[1731354401130,0.25330178,86354.0,86333.0,0.005]
[1731354401131,0.17410178,86345.0,86333.0,0.005]
[1731354401577,0.00700714,86338.0,86333.0,0.005]
[1731354401784,0.00700714,86338.0,86333.0,0.00561526]
[1731354402074,0.00700714,86338.0,86333.0,0.005]
[1731354402718,0.17410178,86345.0,86333.0,0.005]
[1731354402719,0.17281092,86345.0,86333.0,0.005]
[1731354403607,0.18003968,86345.0,86333.0,0.005]
[1731354403813,0.34206903,86344.0,86332.0,0.005]
[1731354404019,0.11994075,86344.0,86336.0,0.005]
[1731354404422,1.5,86337.0,86336.0,0.005]
[1731354406515,1.5,86337.0,86335.0,0.005]
[1731354407188,1.5,86337.0,86336.0,0.00722823]
[1731354407725,1.5,86337.0,86333.0,0.005]
[1731354407926,0.11994075,86336.0,86327.0,0.005]
[1731354408126,0.11994075,86336.0,86324.0,0.005]
[1731354408350,0.11994075,86336.0,86325.0,0.17410178]
[1731354408557,0.17410178,86335.0,86324.0,0.005]
[1731354408728,0.17410178,86335.0,86316.0,0.0078444]
[1731354408729,1.5,86325.0,86316.0,0.17910178]
[1731354408929,1.5,86325.0,86321.0,0.005]
[1731354409792,1.5,86325.0,86316.0,0.005]
[1731354410009,1.5,86325.0,86321.0,0.005]
[1731354410218,1.5,86325.0,86315.0,0.00061526]
[1731354410219,1.5,86325.0,86324.0,0.005]
[1731354410438,0.0769,86341.0,86332.0,0.005]
[1731354410646,0.17410178,86347.0,86335.0,0.005]
[1731354410647,0.17410178,86336.0,86335.0,0.005]
[1731354410868,0.17410178,86347.0,86340.0,0.005]
[1731354411074,0.18130044,86347.0,86340.0,0.005]
[1731354411278,0.00719866,86347.0,86340.0,0.005]
[1731354411483,1.5,86346.0,86340.0,0.005]
[1731354412331,0.1,86345.0,86340.0,0.005]
[1731354412567,0.09922,86345.0,86340.0,0.005]
[1731354412807,0.0819,86352.0,86340.0,0.005]
[1731354413035,0.11994075,86351.0,86340.0,0.005]
[1731354414633,0.1,86350.0,86340.0,0.005]
[1731354414822,0.11994075,86349.0,86340.0,0.005]
[1731354415022,0.11994075,86349.0,86333.0,0.00061526]
[1731354415023,0.08387501,86352.0,86351.0,0.005]
[1731354415235,0.00697501,86352.0,86351.0,0.005]
[1731354415389,0.0017016,86363.0,86357.0,0.00561526]
[1731354415599,0.0017016,86363.0,86357.0,0.13055601]
[1731354415795,0.0017016,86363.0,86357.0,0.13778279]
[1731354415999,0.0001058,86363.0,86362.0,0.00561526]
[1731354416217,0.0001058,86363.0,86362.0,0.13778279]
[1731354416902,0.0001058,86363.0,86362.0,0.13055601]
[1731354417211,0.0001058,86363.0,86362.0,0.13778279]
[1731354417362,0.0001058,86363.0,86362.0,0.01222678]
[1731354417573,0.0001058,86363.0,86362.0,0.005]
[1731354417986,0.0001058,86363.0,86362.0,0.13055601]
[1731354418203,0.0001058,86363.0,86362.0,0.13287163]
[1731354418442,0.0001058,86363.0,86362.0,0.11429732]
[1731354419696,5.418e-05,86363.0,86362.0,0.11429732]
[1731354422915,5.418e-05,86363.0,86362.0,0.11929732]
[1731354424408,5.418e-05,86363.0,86362.0,0.11429732]
[1731354424668,5.418e-05,86363.0,86362.0,0.12161278]
[1731354424927,5.418e-05,86363.0,86362.0,0.13729732]
[1731354425148,5.418e-05,86363.0,86362.0,0.14229732]
[1731354425363,5.418e-05,86363.0,86362.0,0.24229732]
[1731354425775,5.418e-05,86363.0,86362.0,0.21929732]
[1731354425980,5.418e-05,86363.0,86362.0,0.11429732]
[1731354426208,5.418e-05,86363.0,86362.0,0.12161276]
[1731354426426,5.418e-05,86363.0,86362.0,0.10954887]
[1731354426639,0.005,86361.0,86320.0,0.005]
[1731354426854,0.11999493,86363.0,86340.0,0.17410178]
[1731354426855,0.005,86341.0,86340.0,0.17410178]
[1731354427091,1.505,86341.0,86340.0,0.17410178]
[1731354427286,1.505,86341.0,86329.0,0.17410178]
[1731354427538,0.005,86353.0,86338.0,0.17410178]
[1731354427736,0.17410178,86348.0,86329.0,0.17410178]
[1731354427961,0.17410178,86348.0,86241.0,0.092]
[1731354427962,0.005,86336.0,86309.0,0.17410178]
[1731354428210,0.30284075,86336.0,86319.0,0.0072289]
[1731354428445,0.30984075,86336.0,86309.0,0.17410178]
[1731354428680,0.005,86319.0,86309.0,0.17410178]
[1731354428897,0.55167602,86319.0,86309.0,0.17410178]
[1731354429115,0.001,86317.0,86309.0,0.17410178]
[1731354429317,0.005,86310.0,86309.0,0.17410178]
[1731354429520,0.005,86310.0,86291.0,0.17410178]
[1731354429746,0.005,86312.0,86292.0,0.00231746]
[1731354429965,0.005,86314.0,86292.0,0.00231746]
[1731354430175,1.505,86314.0,86293.0,0.12717194]
[1731354430399,1.5,86314.0,86301.0,0.17410178]
[1731354430625,0.17410178,86313.0,86302.0,0.00954833]
[1731354430829,0.001,86333.0,86302.0,0.00954833]
[1731354430830,0.005,86328.0,86303.0,0.00723119]
[1731354431051,0.005,86328.0,86304.0,0.12948882]
[1731354431052,0.00716808,86320.0,86304.0,0.12948882]
[1731354431281,0.17410178,86321.0,86305.0,0.00723119]
[1731354431499,0.00705663,86329.0,86308.0,0.005]
[1731354431708,0.00705663,86329.0,86309.0,0.11994075]
[1731354431709,0.17410178,86320.0,86309.0,0.11994075]
[1731354431930,0.0806,86331.0,86310.0,0.00723119]
[1731354432141,0.15410178,86330.0,86311.0,0.13873831]
[1731354432370,0.15410178,86330.0,86311.0,0.01879756]
[1731354432371,0.17410178,86321.0,86311.0,0.01879756]
[1731354432610,0.19723527,86322.0,86289.0,0.0468]
[1731354432611,0.19723527,86322.0,86312.0,0.18133297]
[1731354432813,0.005,86326.0,86313.0,0.00723119]
[1731354433015,0.005,86326.0,86314.0,0.00723119]
[1731354433449,0.19723527,86321.0,86314.0,0.00723119]
[1731354433659,0.19723527,86321.0,86315.0,0.00723119]
[1731354433915,0.19723527,86321.0,86316.0,0.00723119]
[1731354434123,0.19723527,86321.0,86301.0,0.01156637]
[1731354434332,0.19723527,86321.0,86302.0,0.12717047]
[1731354434545,0.1,86329.0,86309.0,0.17410178]
[1731354434546,0.005,86328.0,86309.0,0.17410178]
[1731354434759,0.005,86328.0,86303.0,0.00722972]
[1731354434760,0.005,86328.0,86310.0,0.0095466]
[1731354434972,0.16114218,86330.0,86311.0,0.00722972]
[1731354435216,0.16114218,86330.0,86312.0,0.00722972]
[1731354435414,0.0070404,86330.0,86314.0,0.005]
[1731354435661,0.17410178,86329.0,86315.0,0.12717047]
[1731354435900,0.0769,86343.0,86315.0,0.12717047]
[1731354435901,0.0769,86343.0,86322.0,0.17410178]
[1731354436092,0.17410178,86348.0,86327.0,0.005]
[1731354436320,0.00691083,86345.0,86328.0,0.14105318]
[1731354436971,0.17410178,86338.0,86329.0,0.00722972]
[1731354437176,0.19723527,86331.0,86329.0,0.01879609]
[1731354437382,0.19723527,86331.0,86330.0,0.00722972]
[1731354437585,0.19723527,86331.0,86330.0,0.00722858]
[1731354437806,0.18104365,86348.0,86330.0,0.00722858]
[1731354437807,0.19723527,86339.0,86330.0,0.00722858]
[1731354438015,0.1,86347.0,86315.0,0.01388305]
[1731354438016,0.19723527,86347.0,86331.0,0.17410178]
[1731354438239,0.005,86346.0,86323.0,0.01388279]
[1731354438444,0.005,86346.0,86324.0,0.127169]